[Event "Mitropa Cup Women 2019"]
[Site "Radenci"]
[Date "2019.06.03"]
[Round "8.3"]
[White "Varga, Klara"]
[Black "Hund, Barbara"]
[Result "1/2-1/2"]
[ECO "A29"]
[WhiteElo "2146"]
[BlackElo "2127"]
[Annotator "RC"]
[PlyCount "129"]
[EventDate "2019.05.27"]
[EventType "team-tourn"]
[EventCountry "SLO"]
[SourceTitle "playchess.com"]
[Source "ChessBase"]
[SourceQuality "1"]
[WhiteTeam "Hungary"]
[BlackTeam "Switzerland"]
[WhiteTeamCountry "HUN"]
[BlackTeamCountry "SUI"]
[TimeControl "40/5400+30:1800+30"]

1. c4 {[%emt 0:00:00]} Nf6 {[%emt 0:00:00]} 2. Nc3 {[%emt 0:00:00]} d5 {[%emt 0:00:04]} 3. cxd5 {[%emt 0:00:00]} Nxd5 {[%emt 0:00:09]} 4. Nf3 {[%emt 0:00:23]} Nc6 {[%emt 0:01:00]} 5. g3 {[%emt 0:12:01]} e5 {[%emt 0:04:02]} 6. Bg2 {[%emt 0:00:02]} Nxc3 {[%emt 0:01:22]} 7. bxc3 {[%emt 0:00:40]} Bc5 {[%emt 0:02:06]} 8. Qc2 {[%emt 0:12:05]} O-O {[%emt 0:06:14]} 9. O-O {[%emt 0:00:15]} Qf6 {[%emt 0:06:46]} 10. d3 {[%emt 0:10:44]} Bf5 {[%emt 0:04:25]} 11. h3 {[%emt 0:05:31]} Rfe8 {[%emt 0:01:44]} 12. Nh4 {[%emt 0:01:52]} Be6 {[%emt 0:04:09]} 13. Kh2 {[%emt 0:03:01]} Qe7 {[%emt 0:05:28]} 14. Bb2 {[%emt 0:15:32]} Rad8 {[%emt 0:06:06]} 15. e4 {[%emt 0:13:31]} Ba3 {[%emt 0:10:40]} 16. Rad1 {[%emt 0:00:37]} Qc5 {[%emt 0:03:25]} 17. Bxa3 {[%emt 0:03:04]} Qxa3 {[%emt 0:01:01]} 18. Rd2 {[%emt 0:00:06]} Rd7 {[%emt 0:05:49]} 19. Rfd1 {[%emt 0:04:32]} Red8 {[%emt 0:00:55]} 20. Nf3 {[%emt 0:00:12]} f6 {[%emt 0:05:21]} 21. d4 {[%emt 0:00:52]} exd4 {[%emt 0:10:24]} 22. cxd4 {[%emt 0:07:10]} Bf7 {[%emt 0:01:57]} 23. Rb1 {[%emt 0:01:40]} Nb4 {[%emt 0:04:15]} 24. Qb2 {[%emt 0:01:21]} Qxb2 {[%emt 0:01:21]} 25. Rbxb2 {[%emt 0:01:03]} c5 {[%emt 0:01:37]} 26. a3 {[%emt 0:01:12]} Na6 {[%emt 0:01:35]} 27. d5 {[%emt 0:00:07]} c4 {[%emt 0:02:42]} 28. Rdc2 {[%emt 0:00:14]} Rc7 {[%emt 0:00:19]} 29. Bf1 {[%emt 0:00:23]} f5 {[%emt 0:00:42]} 30. Rxc4 {[%emt 0:04:26]} fxe4 {[%emt 0:02:28]} 31. Rxc7 {[%emt 0:01:28]} Nxc7 {[%emt 0:00:02]} 32. Rxb7 {[%emt 0:00:23]} exf3 {[%emt 0:03:02]} 33. Rxc7 {[%emt 0:00:04]} Bxd5 {[%emt 0:01:26]} 34. Rxa7 {[%emt 0:00:29]} g6 {[%emt 0:01:44]} 35. g4 {[%emt 0:00:32]} Rc8 {[%emt 0:01:04]} 36. Rd7 {[%emt 0:01:03]} Be6 {[%emt 0:00:33]} 37. Rd6 {[%emt 0:00:38]} Kf7 {[%emt 0:00:41]} 38. Kg3 {[%emt 0:00:25]} Rc1 {[%emt 0:00:58]} 39. Bb5 {[%emt 0:00:18]} Rg1+ {[%emt 0:00:28]} 40. Kxf3 {[%emt 0:00:00]} h5 {[%emt 0:00:00]} 41. Rd4 {[%emt 0:04:00]} hxg4+ {[%emt 0:01:46]} 42. hxg4 {[%emt 0:00:27]} Kf6 {[%emt 0:00:08]} 43. Be2 {[%emt 0:16:25]} Ra1 {[%emt 0:03:12]} 44. a4 {[%emt 0:01:16]} g5 {[%emt 0:00:57]} 45. Ke3 {[%emt 0:00:39]} Ke5 {[%emt 0:03:20]} 46. Re4+ {[%emt 0:00:50]} Kd6 {[%emt 0:00:35]} 47. Rb4 {[%emt 0:00:40]} Bd7 {[%emt 0:02:53]} 48. Rb6+ {[%emt 0:02:15]} Ke7 {[%emt 0:01:36]} 49. Rb7 {[%emt 0:03:14]} Kd6 {[%emt 0:00:57]} 50. f3 {[%emt 0:02:12]} Ra3+ {[%emt 0:00:38]} 51. Kf2 {[%emt 0:02:08]} Ra2 {[%emt 0:00:37]} 52. Rb6+ {[%emt 0:02:51]} Ke5 {[%emt 0:01:49]} 53. Rg6 {[%emt 0:00:43]} Kf4 {[%emt 0:01:42]} 54. Rf6+ {[%emt 0:00:17]} Ke5 {[%emt 0:00:16]} 55. Rg6 {[%emt 0:00:30]} Kf4 {[%emt 0:00:06]} 56. Rf6+ {[%emt 0:00:03]} Ke5 {[%emt 0:00:10]} 57. Rf7 {[%emt 0:00:30]} Be6 {[%emt 0:02:17]} 58. Rc7 {[%emt 0:01:09]} Rxa4 {[%emt 0:01:08]} 59. Ke3 {[%emt 0:00:13]} Ra3+ {[%emt 0:01:22]} 60. Bd3 {[%emt 0:00:03]} Kd6 {[%emt 0:01:32]} 61. Rc1 {[%emt 0:00:45]} Bd5 {[%emt 0:01:05]} 62. Rd1 {[%emt 0:01:15]} Ke5 {[%emt 0:02:43]} 63. Re1 {[%emt 0:00:11]} Kd6 {[%emt 0:01:05]} 64. Rd1 {[%emt 0:00:05]} Ke5 {[%emt 0:00:04]} 65. Re1 {[%emt 0:00:05]} 1/2-1/2

[Event "Mitropa Cup Women 2019"]
[Site "Radenci"]
[Date "2019.06.03"]
[Round "8.4"]
[White "Pellicoro, Nathalie"]
[Black "Gaal, Zsoka"]
[Result "0-1"]
[ECO "B26"]
[WhiteElo "1893"]
[BlackElo "2044"]
[Annotator "NA RC"]
[PlyCount "120"]
[EventDate "2019.05.27"]
[EventType "team-tourn"]
[EventCountry "SLO"]
[SourceTitle "playchess.com"]
[Source "ChessBase"]
[SourceQuality "1"]
[WhiteTeam "Switzerland"]
[BlackTeam "Hungary"]
[WhiteTeamCountry "SUI"]
[BlackTeamCountry "HUN"]
[TimeControl "40/5400+30:1800+30"]

1. e4 {[%emt 0:00:00]} c5 {[%emt 0:00:00]} 2. Nc3 {[%emt 0:00:00]} g6 {[%emt 0:00:00]} 3. g3 {[%emt 0:00:10]} Nc6 {[%emt 0:00:00]} 4. Bg2 {[%emt 0:00:19]} Bg7 {[%emt 0:00:01]} 5. d3 {[%emt 0:00:23]} d6 {[%emt 0:00:03]} 6. Be3 {[%emt 0:00:44]} Rb8 {[%emt 0:00:04]} 7. Qd2 {[%emt 0:05:10]} b5 {[%emt 0:00:10]} 8. Nge2 {[%emt 0:03:01]} b4 {[%emt 0:00:39]} 9. Nd1 {[%emt 0:01:00]} Nd4 {[%emt 0:00:41]} 10. c3 {[%emt 0:01:46] B26: Closed Sicilian: 3 g3, lines with early Be3} (10. O-O Nxe2+ 11. Qxe2 Nf6 12. a3 b3 13. c4 O-O 14. Bd2 e6 15. Bc3 Bb7 16. Ne3 Re8 17. Qd2 d5 18. e5 Nd7 19. Ba5 {0-1 (45) Li,R (2565)-Belous,V (2581) Philadelphia 2017}) 10... Nxe2 {[%emt 0:00:43]} 11. Qxe2 {[%emt 0:01:32]} bxc3 {[%emt 0:05:12]} 12. bxc3 {[%emt 0:00:33]} e6 {[%emt 0:02:51]} 13. O-O {[%emt 0:02:47]} Ne7 {[%emt 0:01:06]} 14. f4 {[%emt 0:01:15]} O-O {[%emt 0:00:17]} 15. d4 {[%emt 0:01:26]} cxd4 {[%emt 0:04:19]} 16. cxd4 {[%emt 0:01:16]} Nc6 {[%emt 0:05:17]} 17. e5 {[%emt 0:03:05]} dxe5 $146 {[%emt 0:03:04]} ({Predecessor:} 17... Nb4 18. Qd2 Bb7 19. Nc3 Bxg2 20. Kxg2 Qa5 21. Kg1 dxe5 22. dxe5 {0-1 (35) Demeterco,R-Krakops,M (2385) Szeged 1994}) 18. dxe5 {[%emt 0:01:27]} Bb7 {[%emt 0:09:21]} 19. Qf2 {[%emt 0:03:56]} Nb4 {[%emt 0:04:26]} 20. Bxa7 {[%emt 0:04:15]} Bxg2 {[%emt 0:02:45]} 21. Qxg2 {[%emt 0:00:52]} Rc8 {[%emt 0:02:55]} 22. Ne3 {[%emt 0:15:37]} Qd7 {[%emt 0:11:58]} 23. Bb6 {[%emt 0:01:57]} Qb5 {[%emt 0:04:29]} 24. Bd4 {[%emt 0:00:57]} Rfd8 {[%emt 0:03:15]} 25. Qb2 {[%emt 0:02:49]} Qa4 {[%emt 0:09:55]} 26. Rfd1 {[%emt 0:06:57]} Nc2 {[%emt 0:04:30]} 27. Bb6 {[%emt 0:04:34]} Rxd1+ {[%emt 0:01:34]} 28. Nxd1 {[%emt 0:00:45]} Nxa1 {[%emt 0:00:45]} 29. Qxa1 {[%emt 0:01:09]} Rb8 {[%emt 0:03:10]} 30. Bc5 {[%emt 0:04:17]} Qc2 {[%emt 0:06:27]} 31. Qd4 {[%emt 0:04:03]} h5 {[%emt 0:00:43]} 32. Nf2 {[%emt 0:05:08]} Rb1+ {[%emt 0:02:19]} 33. Kg2 {[%emt 0:00:35]} Qxa2 {[%emt 0:02:30]} 34. Qd8+ {[%emt 0:02:10]} Kh7 {[%emt 0:00:06]} 35. Qd4 {[%emt 0:02:12]} Qe2 {[%emt 0:04:09]} 36. Kh3 {[%emt 0:03:15]} Qf1+ {[%emt 0:03:58]} 37. Kh4 {[%emt 0:00:09]} Qg2 {[%emt 0:00:55]} 38. h3 {[%emt 0:00:34]} Re1 {[%emt 0:01:12]} 39. Qd7 {[%emt 0:02:23]} Rc1 {[%emt 0:01:34]} 40. Qd4 {[%emt 0:00:00] [#]} Re1 $2 {[%emt 0:00:00]} (40... f6 $1 $19 41. Qe4 {[#]} (41. exf6 Rg1) 41... fxe5 $1 {[%mdl 512]}) 41. Qd7 $1 {[%emt 0:02:08]} Qf3 {[%emt 0:15:12]} 42. Qxf7 {[%emt 0:12:55] [#]} g5+ {[%emt 0:01:02]} (42... Rxe5 $142 $1 {[%mdl 512]} 43. Qxg7+ (43. fxe5 g5+) 43... Kxg7 44. fxe5 {[#]} g5+ $1 {[%mdl 576] Deflection, Decoy} 45. Kxg5 Qxg3+ 46. Kxh5 Qxe5+ {[%mdl 64] Double Attack} 47. Kg4 Qxc5 48. Kf3 Qd4 49. Ke2 e5 50. Nd3 Qe4+ 51. Kd2 Qg2+ 52. Kc3 Qxh3 53. Kd2 e4 54. Nb4 Qb3 55. Nc2 Qb2 $1 {[%mdl 512]} 56. Kd1 Qc3 57. Ne1 e3 58. Ke2 Qd2+ 59. Kf3 Qxe1 60. Ke4 e2 61. Kd3 Qd1+ 62. Kc3 e1=Q+ 63. Kc4 Qa4+ 64. Kc5 Qe7+ 65. Kd5 Qae4#) 43. Kxg5 {[%emt 0:00:09] [#]} Rxe5+ $1 {[%emt 0:00:19] Double Attack, Pin} 44. Kh4 {[%emt 0:02:39]} Rxc5 {[%emt 0:00:14]} 45. Qxe6 {[%emt 0:02:43]} Qd5 {[%emt 0:02:57]} 46. Qe7 {[%emt 0:01:58]} Rc4 {[%emt 0:00:34]} 47. Qg5 {[%emt 0:03:04]} Qxg5+ {[%emt 0:01:48]} 48. Kxg5 {[%emt 0:00:05]} Rc5+ {[%emt 0:01:29]} 49. f5 {[%emt 0:00:46]} Bh6+ {[%emt 0:01:20]} 50. Kf6 {[%emt 0:01:13]} Rc6+ {[%emt 0:00:54]} 51. Ke5 {[%emt 0:00:42]} Kg7 $19 {[%emt 0:01:47]} 52. Ne4 {[%emt 0:00:23]} Kf8 {[%emt 0:01:51]} 53. g4 {[%emt 0:01:11]} hxg4 {[%emt 0:01:24]} 54. hxg4 {[%emt 0:00:09]} Bc1 {[%emt 0:00:46]} 55. f6 {[%emt 0:00:38]} Kf7 {[%emt 0:02:57]} 56. Nd6+ {[%emt 0:01:24]} Kg6 {[%emt 0:01:13]} 57. Kd5 {[%emt 0:04:09]} Ra6 {[%emt 0:00:30]} 58. f7 {[%emt 0:00:26]} Kg7 {[%emt 0:00:27]} 59. Ke5 {[%emt 0:02:39]} Bf4+ {[%emt 0:00:18]} 60. Kxf4 {[%emt 0:00:11]} Rxd6 {[%emt 0:00:29]} 0-1

[Event "Mitropa Cup Women 2019"]
[Site "Radenci"]
[Date "2019.06.03"]
[Round "8.5"]
[White "Motycakova, Monika"]
[Black "Ragger, Anna-Christina"]
[Result "1-0"]
[ECO "C60"]
[WhiteElo "2150"]
[BlackElo "2272"]
[Annotator "ChessBase"]
[PlyCount "79"]
[EventDate "2019.05.27"]
[EventType "team-tourn"]
[EventCountry "SLO"]
[SourceTitle "playchess.com"]
[Source "ChessBase"]
[SourceQuality "1"]
[WhiteTeam "Slovakia"]
[BlackTeam "Austria"]
[WhiteTeamCountry "SVK"]
[BlackTeamCountry "AUT"]
[TimeControl "40/5400+30:1800+30"]

1. e4 {[%emt 0:00:00]} e5 {[%emt 0:00:00]} 2. Nf3 {[%emt 0:00:00]} Nc6 {[%emt 0:00:00]} 3. Bb5 {[%emt 0:00:00]} g6 {[%emt 0:00:00]} 4. O-O {[%emt 0:01:05]} Bg7 {[%emt 0:00:28]} 5. c3 {[%emt 0:01:08]} a6 {[%emt 0:01:01]} 6. Ba4 {[%emt 0:02:10]} b5 {[%emt 0:00:29]} 7. Bb3 {[%emt 0:01:27]} Na5 {[%emt 0:02:01]} 8. Bc2 {[%emt 0:00:27]} c5 {[%emt 0:00:10]} 9. d4 {[%emt 0:01:41]} cxd4 {[%emt 0:00:06]} 10. cxd4 {[%emt 0:00:08]} exd4 {[%emt 0:00:09]} 11. Nxd4 {[%emt 0:01:28]} Ne7 {[%emt 0:04:56]} 12. Nc3 {[%emt 0:09:55]} O-O {[%emt 0:08:23]} 13. a4 {[%emt 0:28:06]} b4 {[%emt 0:02:22]} 14. Nce2 {[%emt 0:00:08]} d5 {[%emt 0:14:14]} 15. Bg5 {[%emt 0:03:29]} Ra7 {[%emt 0:24:39]} 16. exd5 {[%emt 0:16:31]} Qxd5 {[%emt 0:01:06]} 17. Bxe7 {[%emt 0:05:48]} Rxe7 {[%emt 0:00:13]} 18. Nf5 {[%emt 0:00:27]} Qb7 {[%emt 0:03:26]} 19. Nxe7+ {[%emt 0:00:20]} Qxe7 {[%emt 0:00:07]} 20. Re1 {[%emt 0:08:15]} Bxb2 {[%emt 0:02:05]} 21. Rb1 {[%emt 0:00:21]} Qf6 {[%emt 0:08:26]} 22. Qd5 {[%emt 0:02:10]} Nc6 {[%emt 0:00:39]} 23. Rxb2 {[%emt 0:06:25]} Qxb2 {[%emt 0:01:13]} 24. Qxc6 {[%emt 0:00:03]} Be6 {[%emt 0:01:59]} 25. Rb1 {[%emt 0:05:07]} Qe5 {[%emt 0:04:44]} 26. Qxa6 {[%emt 0:01:07]} b3 {[%emt 0:02:52]} 27. Bd3 {[%emt 0:01:11]} Rb8 {[%emt 0:00:04]} 28. Qa7 {[%emt 0:03:34]} b2 {[%emt 0:02:52]} 29. f4 {[%emt 0:00:03]} Qd6 {[%emt 0:00:13]} 30. Bb5 {[%emt 0:00:18]} Rb6 {[%emt 0:02:32]} 31. Rxb2 {[%emt 0:00:49]} Qc5+ {[%emt 0:00:04]} 32. Kf1 {[%emt 0:01:00]} Kg7 {[%emt 0:00:49]} 33. Qa5 {[%emt 0:00:30]} f6 {[%emt 0:01:44]} 34. Qc3 {[%emt 0:00:35]} Qd6 {[%emt 0:00:23]} 35. Rd2 {[%emt 0:00:35]} Qe7 {[%emt 0:00:08]} 36. Qd4 {[%emt 0:00:25]} Rb7 {[%emt 0:01:06]} 37. Qd6 {[%emt 0:00:07]} Qf7 {[%emt 0:00:05]} 38. Qd8 {[%emt 0:00:36]} Bg4 {[%emt 0:00:14]} 39. h3 {[%emt 0:00:25]} Bxe2+ {[%emt 0:00:03]} 40. Rxe2 {[%emt 0:00:00]} 1-0

[Event "Mitropa Cup Women 2019"]
[Site "Radenci"]
[Date "2019.06.03"]
[Round "8.6"]
[White "Hapala, Elisabeth"]
[Black "Ferkova, Dominika"]
[Result "1-0"]
[ECO "B19"]
[WhiteElo "2122"]
[BlackElo "2037"]
[Annotator "ChessBase"]
[PlyCount "65"]
[EventDate "2019.05.27"]
[EventType "team-tourn"]
[EventCountry "SLO"]
[SourceTitle "playchess.com"]
[Source "ChessBase"]
[SourceQuality "1"]
[WhiteTeam "Austria"]
[BlackTeam "Slovakia"]
[WhiteTeamCountry "AUT"]
[BlackTeamCountry "SVK"]
[TimeControl "40/5400+30:1800+30"]

1. e4 {[%emt 0:00:00]} c6 {[%emt 0:00:00]} 2. d4 {[%emt 0:00:00]} d5 {[%emt 0:00:00]} 3. Nc3 {[%emt 0:00:00]} dxe4 {[%emt 0:00:00]} 4. Nxe4 {[%emt 0:00:00]} Bf5 {[%emt 0:00:00]} 5. Ng3 {[%emt 0:00:00]} Bg6 {[%emt 0:00:00]} 6. h4 {[%emt 0:00:00]} h6 {[%emt 0:00:03]} 7. Nf3 {[%emt 0:00:00]} Nd7 {[%emt 0:00:06]} 8. h5 {[%emt 0:00:02]} Bh7 {[%emt 0:00:05]} 9. Bd3 {[%emt 0:00:06]} Bxd3 {[%emt 0:00:07]} 10. Qxd3 {[%emt 0:00:04]} e6 {[%emt 0:00:11]} 11. Bf4 {[%emt 0:00:22]} Qa5+ {[%emt 0:01:38]} 12. Bd2 {[%emt 0:00:09]} Bb4 {[%emt 0:00:51]} 13. c3 {[%emt 0:00:11]} Be7 {[%emt 0:00:09]} 14. c4 {[%emt 0:00:10]} Qc7 {[%emt 0:00:10]} 15. d5 {[%emt 0:00:33]} Ne5 {[%emt 0:33:44]} 16. Qe2 {[%emt 0:11:22]} Nxf3+ {[%emt 0:01:49]} 17. Qxf3 {[%emt 0:00:04]} cxd5 {[%emt 0:05:00]} 18. cxd5 {[%emt 0:01:15]} Qe5+ {[%emt 0:05:09]} 19. Kf1 {[%emt 0:07:11]} Qxd5 {[%emt 0:06:56]} 20. Qxd5 {[%emt 0:00:29]} exd5 {[%emt 0:00:11]} 21. Nf5 {[%emt 0:01:26]} Bf8 {[%emt 0:21:17]} 22. Rh3 {[%emt 0:19:25]} g6 {[%emt 0:05:59]} 23. Nd4 {[%emt 0:03:39]} Bg7 {[%emt 0:06:16]} 24. Nb5 {[%emt 0:03:16]} Kd7 {[%emt 0:02:16]} 25. Rc1 {[%emt 0:09:35]} Rc8 {[%emt 0:05:13]} 26. Rxc8 {[%emt 0:02:16]} Kxc8 {[%emt 0:00:02]} 27. Nd6+ {[%emt 0:00:10]} Kd7 {[%emt 0:01:06]} 28. Nxf7 {[%emt 0:00:07]} g5 {[%emt 0:00:56]} 29. Nxh8 {[%emt 0:01:04]} Bxh8 {[%emt 0:00:01]} 30. b3 {[%emt 0:03:09]} Ne7 {[%emt 0:02:49]} 31. f4 {[%emt 0:05:14]} gxf4 {[%emt 0:00:27]} 32. Bxf4 {[%emt 0:00:06]} Nf5 {[%emt 0:00:11]} 33. g4 {[%emt 0:00:43]} 1-0

[Event "Mitropa Cup Women 2019"]
[Site "Radenci"]
[Date "2019.06.03"]
[Round "8.7"]
[White "Sankova, Stella"]
[Black "Schloffer, Jasmin-Denise"]
[Result "0-1"]
[ECO "C54"]
[WhiteElo "2013"]
[BlackElo "2133"]
[Annotator "ChessBase"]
[PlyCount "56"]
[EventDate "2019.05.27"]
[EventType "team-tourn"]
[EventCountry "SLO"]
[SourceTitle "playchess.com"]
[Source "ChessBase"]
[SourceQuality "1"]
[WhiteTeam "Slovakia"]
[BlackTeam "Austria"]
[WhiteTeamCountry "SVK"]
[BlackTeamCountry "AUT"]
[TimeControl "40/5400+30:1800+30"]

1. e4 {[%emt 0:00:00]} e5 {[%emt 0:00:00]} 2. Nf3 {[%emt 0:00:00]} Nc6 {[%emt 0:00:00]} 3. Bc4 {[%emt 0:00:00]} Bc5 {[%emt 0:00:00]} 4. c3 {[%emt 0:00:00]} Nf6 {[%emt 0:00:00]} 5. d3 {[%emt 0:00:00]} d6 {[%emt 0:00:00]} 6. Bb3 {[%emt 0:00:05]} O-O {[%emt 0:00:19]} 7. h3 {[%emt 0:02:27]} h6 {[%emt 0:00:06]} 8. Nbd2 {[%emt 0:00:03]} a5 {[%emt 0:00:06]} 9. Nf1 {[%emt 0:00:49]} d5 {[%emt 0:02:05]} 10. Qe2 {[%emt 0:00:25]} a4 {[%emt 0:08:38]} 11. Bc2 {[%emt 0:00:15]} b6 {[%emt 0:02:03]} 12. Ng3 {[%emt 0:06:58]} dxe4 {[%emt 0:03:56]} 13. Nxe4 {[%emt 0:00:18]} Nxe4 {[%emt 0:01:33]} 14. Qxe4 {[%emt 0:00:13]} Bb7 {[%emt 0:00:17]} 15. Qf5 {[%emt 0:04:57]} Ne7 {[%emt 0:02:04]} 16. Qh5 {[%emt 0:05:49]} Ng6 {[%emt 0:02:54]} 17. O-O {[%emt 0:04:02]} Qf6 {[%emt 0:02:15]} 18. Be3 {[%emt 0:04:59]} Bd6 {[%emt 0:03:10]} 19. Nd2 {[%emt 0:08:44]} Qe6 {[%emt 0:15:06]} 20. Ne4 {[%emt 0:19:48]} f5 {[%emt 0:02:23]} 21. Nxd6 {[%emt 0:00:05]} cxd6 {[%emt 0:00:32]} 22. Rae1 {[%emt 0:07:10]} f4 {[%emt 0:04:54]} 23. Bxb6 {[%emt 0:03:11]} Rf5 {[%emt 0:00:30]} 24. Qd1 {[%emt 0:01:55]} Rg5 {[%emt 0:01:33]} 25. f3 {[%emt 0:02:28]} Qxh3 {[%emt 0:00:28]} 26. Rf2 {[%emt 0:01:04]} Nh4 {[%emt 0:00:35]} 27. Qe2 {[%emt 0:02:20]} Nxf3+ {[%emt 0:00:48]} 28. Rxf3 {[%emt 0:01:12]} Bxf3 {[%emt 0:00:07]} 0-1

[Event "Mitropa Cup Women 2019"]
[Site "Radenci"]
[Date "2019.06.03"]
[Round "8.8"]
[White "Froewis, Annika"]
[Black "Milcova, Zuzana"]
[Result "1/2-1/2"]
[ECO "D40"]
[WhiteElo "2089"]
[BlackElo "2093"]
[Annotator "NA"]
[PlyCount "72"]
[EventDate "2019.05.27"]
[EventType "team-tourn"]
[EventCountry "SLO"]
[SourceTitle "playchess.com"]
[Source "ChessBase"]
[SourceQuality "1"]
[WhiteTeam "Austria"]
[BlackTeam "Slovakia"]
[WhiteTeamCountry "AUT"]
[BlackTeamCountry "SVK"]
[TimeControl "40/5400+30:1800+30"]

1. e4 {[%emt 0:00:00]} d5 {[%emt 0:00:00]} 2. exd5 {[%emt 0:00:00]} Nf6 {[%emt 0:00:00]} 3. c4 {[%emt 0:00:10]} c6 {[%emt 0:00:00]} 4. d4 {[%emt 0:00:19]} cxd5 {[%emt 0:00:00]} 5. Nc3 {[%emt 0:00:32]} e6 {[%emt 0:00:09]} 6. Nf3 {[%emt 0:00:14]} Be7 {[%emt 0:00:36]} 7. Be2 {[%emt 0:01:02]} O-O {[%emt 0:00:20]} 8. O-O {[%emt 0:00:13]} dxc4 {[%emt 0:02:34]} 9. Bxc4 {[%emt 0:00:06]} Nc6 {[%emt 0:01:14]} 10. a3 {[%emt 0:00:37]} a6 {[%emt 0:02:18]} 11. Ba2 {[%emt 0:06:15]} b5 {[%emt 0:11:26]} 12. Qd3 {[%emt 0:12:54] D40: Queen's Gambit Declined: Semi-Tarrasch with 5 e3} (12. d5 exd5 13. Nxd5 Nxd5 14. Qxd5 Qxd5 15. Bxd5 Bb7 16. Bf4 Bf6 17. Rac1 Rac8 18. b4 Rfd8 19. Rcd1 h6 {½-½ (54) Salem,A (2625)-Arencibia Rodriguez,W (2506) Sharjah 2016}) 12... Bb7 {[%emt 0:08:11]} 13. Rd1 {[%emt 0:06:02]} Rc8 {[%emt 0:10:55]} 14. Ng5 $146 {[%emt 0:05:20]} ({Predecessor:} 14. Bg5 Na5 15. Ne5 Nd5 16. Bxd5 Bxg5 17. Bxb7 Nxb7 18. a4 b4 {0-1 (47) Glimbrant,T (2192)-Johansson,L (2423) Stockholm 2015}) 14... Bd6 {[%emt 0:43:32]} 15. d5 {[%emt 0:21:19]} Ne5 {[%emt 0:00:38]} 16. Qh3 {[%emt 0:00:49]} Rxc3 {[%emt 0:09:45]} 17. Qxc3 {[%emt 0:02:57]} exd5 {[%emt 0:00:54]} 18. Bf4 {[%emt 0:04:04]} Qb8 {[%emt 0:01:30]} 19. Bg3 {[%emt 0:03:43]} h6 {[%emt 0:00:47]} 20. Nf3 {[%emt 0:01:34]} Ne4 {[%emt 0:00:51]} 21. Qb3 {[%emt 0:01:07]} Ng4 {[%emt 0:02:21]} 22. Bxd6 {[%emt 0:07:53]} Qxd6 {[%emt 0:00:06]} 23. Qb4 {[%emt 0:00:51]} Qxb4 {[%emt 0:01:16]} 24. axb4 {[%emt 0:00:02]} Ngxf2 {[%emt 0:00:57] [#]} 25. Rd4 $1 {[%emt 0:02:25]} Rd8 {[%emt 0:00:41]} 26. h3 {[%emt 0:02:01]} g5 {[%emt 0:01:11]} 27. Re1 {[%emt 0:07:14]} Kg7 {[%emt 0:00:39]} 28. Re2 {[%emt 0:00:58]} g4 {[%emt 0:00:26]} 29. Nh4 {[%emt 0:04:34]} gxh3 {[%emt 0:00:15]} 30. gxh3 {[%emt 0:00:32]} Nxh3+ {[%emt 0:00:19]} 31. Kh2 {[%emt 0:00:05]} Nhg5 {[%emt 0:00:16]} 32. Rc2 {[%emt 0:02:19]} Rd7 {[%emt 0:00:28]} 33. Kg1 {[%emt 0:02:50]} Kf6 {[%emt 0:00:24]} 34. Kf1 {[%emt 0:00:26]} Ke5 {[%emt 0:00:36]} 35. Rd3 {[%emt 0:00:30]} Kf4 $17 {[%emt 0:00:51]} (35... h5 $19 36. Ke2 Ne6 37. Nf3+ Kd6) 36. Ng2+ {[%emt 0:00:21]} Ke5 {[%emt 0:00:48]} 1/2-1/2

[Event "Mitropa Cup Women 2019"]
[Site "Radenci"]
[Date "2019.06.03"]
[Round "8.10"]
[White "Janzelj, Lara"]
[Black "Nemcova, Karin"]
[Result "1-0"]
[ECO "E73"]
[WhiteElo "2203"]
[BlackElo "1947"]
[Annotator "ChessBase"]
[PlyCount "69"]
[EventDate "2019.05.27"]
[EventType "team-tourn"]
[EventCountry "SLO"]
[SourceTitle "playchess.com"]
[Source "ChessBase"]
[SourceQuality "1"]
[WhiteTeam "Slovenia"]
[BlackTeam "Czech Republic"]
[WhiteTeamCountry "SLO"]
[BlackTeamCountry "CZE"]
[TimeControl "40/5400+30:1800+30"]

1. d4 {[%emt 0:00:00]} Nf6 {[%emt 0:00:00]} 2. c4 {[%emt 0:00:00]} g6 {[%emt 0:00:00]} 3. Nc3 {[%emt 0:00:00]} Bg7 {[%emt 0:00:00]} 4. e4 {[%emt 0:00:00]} d6 {[%emt 0:00:00]} 5. Be2 {[%emt 0:00:06]} O-O {[%emt 0:00:18]} 6. Be3 {[%emt 0:00:11]} e5 {[%emt 0:00:30]} 7. d5 {[%emt 0:00:08]} a5 {[%emt 0:00:24]} 8. g4 {[%emt 0:00:30]} Na6 {[%emt 0:02:26]} 9. h4 {[%emt 0:01:03]} Nd7 {[%emt 0:06:30]} 10. h5 {[%emt 0:09:37]} g5 {[%emt 0:12:17]} 11. Nf3 {[%emt 0:03:26]} h6 {[%emt 0:05:12]} 12. Nh2 {[%emt 0:00:46]} Ndc5 {[%emt 0:01:41]} 13. Nf1 {[%emt 0:01:21]} Bd7 {[%emt 0:06:49]} 14. Ng3 {[%emt 0:03:37]} a4 {[%emt 0:03:43]} 15. O-O {[%emt 0:01:11]} Qe7 {[%emt 0:10:46]} 16. Nb5 {[%emt 0:08:01]} Rfc8 {[%emt 0:02:13]} 17. Qd2 {[%emt 0:01:40]} b6 {[%emt 0:03:42]} 18. f3 {[%emt 0:06:32]} f6 {[%emt 0:02:50]} 19. Rfb1 {[%emt 0:02:07]} Nb8 {[%emt 0:07:21]} 20. Qd1 {[%emt 0:04:06]} Bxb5 {[%emt 0:15:14]} 21. cxb5 {[%emt 0:00:24]} Nbd7 {[%emt 0:00:36]} 22. b4 {[%emt 0:02:59]} axb3 {[%emt 0:00:32]} 23. axb3 {[%emt 0:00:07]} Nf8 {[%emt 0:01:00]} 24. b4 {[%emt 0:00:42]} Nb7 {[%emt 0:04:18]} 25. Ra6 {[%emt 0:02:30]} Nd8 {[%emt 0:01:15]} 26. Qa4 {[%emt 0:00:55]} Rab8 {[%emt 0:00:18]} 27. Rc1 {[%emt 0:00:24]} Qd7 {[%emt 0:01:38]} 28. Ra7 {[%emt 0:01:12]} Kh8 {[%emt 0:03:39]} 29. Qc2 {[%emt 0:01:11]} Nb7 {[%emt 0:01:26]} 30. Nf5 {[%emt 0:00:44]} Kg8 {[%emt 0:01:07]} 31. Qc6 {[%emt 0:00:18]} Qxc6 {[%emt 0:05:42]} 32. bxc6 {[%emt 0:00:48]} Nd8 {[%emt 0:00:18]} 33. Ne7+ {[%emt 0:00:10]} Kh8 {[%emt 0:00:25]} 34. Nxc8 {[%emt 0:00:05]} Rxc8 {[%emt 0:00:05]} 35. Ba6 {[%emt 0:00:06]} 1-0